bitfinex/quotes_BTCUSD_20230906
["timestamp","ask_amount","ask_price","bid_price","bid_amount"]
[1693972400803,0.87691344,25803.0,25802.0,2.48078737]
[1693972401003,0.87679344,25803.0,25802.0,2.48078737]
[1693972401199,0.87655344,25803.0,25802.0,2.48078737]
[1693972401404,0.77386973,25803.0,25802.0,2.48078737]
[1693972401606,0.77218973,25803.0,25802.0,2.48078737]
[1693972401837,0.77200973,25803.0,25802.0,2.48078737]
[1693972402035,0.77182973,25803.0,25802.0,2.48078737]
[1693972402263,0.77176973,25803.0,25802.0,2.48078737]
[1693972402444,0.68261292,25803.0,25802.0,2.48078737]
[1693972402660,0.68183292,25803.0,25802.0,2.48078737]
[1693972402865,0.68147292,25803.0,25802.0,2.48078737]
[1693972403064,0.61547292,25803.0,25802.0,2.48078737]
[1693972403261,0.61547292,25803.0,25802.0,2.6349503]
[1693972408748,0.70804445,25803.0,25802.0,2.6349503]
[1693972410135,0.70804445,25803.0,25802.0,1.55191422]
[1693972410352,2.03340485,25803.0,25802.0,0.00040178]
[1693972410574,3.55645613,25803.0,25799.0,0.775198]
[1693972410780,0.05129033,25799.0,25798.0,0.21915681]
[1693972410994,0.66927291,25799.0,25798.0,0.99440981]
[1693972411208,1.03439887,25799.0,25798.0,0.21915681]
[1693972411411,0.98004165,25799.0,25797.0,0.77566078]
[1693972411618,0.38664527,25798.0,25797.0,0.77566078]
[1693972411860,0.50694527,25798.0,25797.0,1.55094378]
[1693972412071,0.74439509,25798.0,25797.0,0.77566078]
[1693972412278,0.94297831,25798.0,25797.0,0.77566078]
[1693972412488,0.94285831,25798.0,25797.0,0.77566078]
[1693972412698,0.94279831,25798.0,25797.0,0.77604335]
[1693972412901,0.94219831,25798.0,25797.0,0.77604335]
[1693972413113,0.96607831,25798.0,25797.0,0.77604335]
[1693972413316,0.87001831,25798.0,25797.0,0.77604335]
[1693972413516,0.67149509,25798.0,25797.0,0.77604335]
[1693972413721,0.64299509,25798.0,25797.0,0.77604335]
[1693972413941,0.64299509,25798.0,25797.0,1.55132635]
[1693972414132,0.66699509,25798.0,25797.0,1.55132635]
[1693972414331,0.66711509,25798.0,25797.0,1.55132635]
[1693972414567,0.64395509,25798.0,25797.0,0.77604335]
[1693972414787,0.66777509,25798.0,25797.0,1.55132635]
[1693972414998,0.82389309,25798.0,25797.0,1.55132635]
[1693972415205,0.82479309,25798.0,25797.0,1.55132635]
[1693972415436,0.82485309,25798.0,25797.0,1.55132635]
[1693972415665,0.82491309,25798.0,25797.0,1.55132635]
[1693972418009,0.81525309,25798.0,25797.0,1.55132635]
[1693972418236,0.80853309,25798.0,25797.0,1.55132635]
[1693972418444,0.58980327,25798.0,25797.0,2.32660935]
[1693972423937,0.65826327,25798.0,25797.0,2.32660935]
[1693972424135,0.66048327,25798.0,25797.0,1.55132635]
[1693972424465,0.66330327,25798.0,25797.0,1.55132635]
[1693972424632,0.66276327,25798.0,25797.0,1.55132635]
[1693972424836,0.68246327,25798.0,25797.0,1.55132635]
[1693972425214,0.68270327,25798.0,25797.0,1.55132635]
[1693972425416,0.68306327,25798.0,25797.0,1.55132635]
[1693972425749,0.71381648,25798.0,25797.0,1.55132635]
[1693972425916,0.71393648,25798.0,25797.0,1.55132635]
[1693972426302,0.71393648,25798.0,25797.0,2.32660935]
[1693972426513,0.71375648,25798.0,25797.0,2.32660935]
[1693972426687,0.71387648,25798.0,25797.0,1.55132635]
[1693972426897,0.71393648,25798.0,25797.0,1.55132635]
[1693972427437,0.98107163,25798.0,25797.0,1.55132635]
[1693972427678,0.98425163,25798.0,25797.0,1.55132635]
[1693972427889,0.98371163,25798.0,25797.0,1.55132635]
[1693972428091,0.98329163,25798.0,25797.0,1.55132635]
[1693972428266,0.97873163,25798.0,25797.0,1.55132635]
[1693972428498,0.70835648,25798.0,25797.0,1.55132635]
[1693972428703,0.68745648,25798.0,25797.0,2.32660935]
[1693972428917,0.46545848,25798.0,25797.0,2.32660935]
[1693972429124,0.46545848,25798.0,25797.0,2.39901342]
[1693972438279,0.46545848,25798.0,25797.0,2.51931342]
[1693972439042,0.07881321,25798.0,25797.0,2.51931342]
[1693972448700,0.54939848,25798.0,25797.0,0.77604335]
[1693972448906,0.54303848,25798.0,25797.0,0.77606735]
[1693972449105,0.54303848,25798.0,25797.0,1.55135035]
[1693972449106,0.54117848,25798.0,25797.0,1.55135035]
[1693972449334,0.53973848,25798.0,25797.0,1.55135035]
[1693972449537,0.53997848,25798.0,25797.0,2.32663335]
[1693972449739,0.53985848,25798.0,25797.0,2.32663335]
[1693972449915,0.53973848,25798.0,25797.0,2.32663335]
[1693972450214,0.68810529,25798.0,25797.0,2.32163335]
[1693972450622,0.68780529,25798.0,25797.0,2.3220254]
[1693972450758,0.68774529,25798.0,25797.0,2.3220254]
[1693972450959,0.68756529,25798.0,25797.0,2.3220254]
[1693972451162,0.68738529,25798.0,25797.0,2.3220254]
[1693972451359,0.68708529,25798.0,25797.0,2.3220254]
[1693972451641,0.68684529,25798.0,25797.0,2.3220254]
[1693972451965,0.68672529,25798.0,25797.0,2.3220254]
[1693972452223,0.68612529,25798.0,25797.0,2.3220254]
[1693972452432,0.68582529,25798.0,25797.0,2.3220254]
[1693972452638,0.68600529,25798.0,25797.0,2.3220254]
[1693972452840,0.68474529,25798.0,25797.0,2.3220254]
[1693972453061,0.68486529,25798.0,25797.0,2.3220254]
[1693972453331,0.68630529,25798.0,25797.0,2.3220254]
[1693972453511,0.68618529,25798.0,25797.0,2.3220254]
[1693972453715,0.77889466,25798.0,25797.0,2.3220254]
[1693972453889,0.77967466,25798.0,25797.0,2.3220254]
[1693972454294,0.77961466,25798.0,25797.0,2.3220254]
[1693972454517,0.78033466,25798.0,25797.0,2.3220254]
[1693972454719,0.78087466,25798.0,25797.0,2.3220254]
[1693972454916,0.78423466,25798.0,25797.0,2.3220254]
[1693972455122,0.78405466,25798.0,25797.0,2.3220254]
[1693972455297,0.78393466,25798.0,25797.0,2.3220254]
[1693972455511,0.78375466,25798.0,25797.0,2.3220254]
[1693972455710,0.9223829,25798.0,25797.0,2.3220254]
[1693972456035,0.9228629,25798.0,25797.0,2.3220254]
[1693972456236,0.9227429,25798.0,25797.0,2.3220254]
[1693972456440,1.21678019,25798.0,25797.0,2.3220254]
[1693972456612,1.21852019,25798.0,25797.0,1.5467424]
[1693972456812,1.21846019,25798.0,25797.0,1.5467424]
[1693972457069,1.21828019,25798.0,25797.0,1.5467424]
[1693972457240,1.21810019,25798.0,25797.0,1.5467424]
[1693972457446,1.21798019,25798.0,25797.0,1.5467424]
[1693972457619,1.21786019,25798.0,25797.0,1.5467424]
[1693972457787,1.21774019,25798.0,25797.0,1.5467424]
[1693972457991,1.21762019,25798.0,25797.0,1.5467424]
[1693972458215,1.21780019,25798.0,25797.0,1.5467424]
[1693972458430,1.21768019,25798.0,25797.0,1.5467424]
[1693972458638,1.21744019,25798.0,25797.0,1.5467424]
[1693972458839,1.21696019,25798.0,25797.0,1.5467424]
[1693972459037,1.21690019,25798.0,25797.0,1.5467424]
[1693972459282,1.21678019,25798.0,25797.0,1.5467424]
[1693972459489,1.21708019,25798.0,25797.0,1.5467424]
[1693972459716,1.21552019,25798.0,25797.0,1.5467424]
[1693972459926,1.21432019,25798.0,25797.0,1.5467424]
[1693972460124,1.21366019,25798.0,25797.0,1.5467424]
[1693972460297,1.21342019,25798.0,25797.0,1.5467424]
[1693972460507,1.21336019,25798.0,25797.0,1.5467424]
[1693972460713,1.21324019,25798.0,25797.0,1.5467424]
[1693972460864,1.21318019,25798.0,25797.0,1.5467424]
[1693972461071,1.21306019,25798.0,25797.0,1.5467424]
[1693972461272,1.21294019,25798.0,25797.0,1.5467424]
[1693972461472,1.21288019,25798.0,25797.0,1.5467424]
[1693972461677,0.9184829,25798.0,25797.0,1.5467424]
[1693972461994,0.9188429,25798.0,25797.0,1.5467424]
[1693972462215,0.9189029,25798.0,25797.0,1.5467424]
[1693972462403,0.9187829,25798.0,25797.0,1.5467424]
[1693972462621,0.9186029,25798.0,25797.0,1.5467424]
[1693972462792,0.9186629,25798.0,25797.0,1.5467424]
[1693972463153,0.9189629,25798.0,25797.0,1.5467424]
[1693972463401,0.9268229,25798.0,25797.0,0.77607683]
[1693972463633,0.9237029,25798.0,25797.0,1.55135983]
[1693972463833,0.9226229,25798.0,25797.0,1.55135983]
[1693972464040,0.9194429,25798.0,25797.0,1.55135983]
[1693972464246,0.9176429,25798.0,25797.0,1.55135983]
[1693972464446,0.9169229,25798.0,25797.0,1.55135983]
[1693972464645,0.9167429,25798.0,25797.0,1.55135983]
[1693972464788,0.92853982,25798.0,25797.0,1.55135983]
[1693972464988,0.92847982,25798.0,25797.0,1.55135983]
[1693972465190,0.93069982,25798.0,25797.0,1.55135983]
[1693972465390,0.93099982,25798.0,25797.0,1.55135983]
[1693972465651,0.93093982,25798.0,25797.0,1.55135983]
[1693972466089,0.93117982,25798.0,25797.0,1.55135983]
[1693972466296,0.93123982,25798.0,25797.0,1.55135983]
[1693972466477,0.93111982,25798.0,25797.0,1.55135983]
[1693972466683,0.93105982,25798.0,25797.0,1.55135983]
[1693972466835,0.93099982,25798.0,25797.0,1.55135983]
[1693972467041,0.93141982,25798.0,25797.0,1.55135983]
[1693972467268,0.93117982,25798.0,25797.0,1.55135983]
[1693972467477,0.93105982,25798.0,25797.0,1.55135983]
[1693972467679,0.98462349,25798.0,25797.0,1.55135983]
[1693972467881,0.98456349,25798.0,25797.0,1.55135983]
[1693972468257,0.98384349,25798.0,25797.0,1.55135983]
[1693972468698,0.98378349,25798.0,25797.0,1.55135983]
[1693972468899,0.98372349,25798.0,25797.0,1.55135983]
[1693972469122,0.98366349,25798.0,25797.0,1.55135983]
[1693972469458,1.13348349,25798.0,25797.0,1.55135983]
[1693972469657,1.13342349,25798.0,25797.0,1.55135983]
[1693972469870,1.13336349,25798.0,25797.0,1.55135983]
[1693972470049,1.13336349,25798.0,25797.0,2.32664283]
[1693972470050,1.13330349,25798.0,25797.0,2.32664283]
[1693972470251,1.07961982,25798.0,25797.0,2.32664283]
[1693972470427,1.07937982,25798.0,25797.0,2.32664283]
[1693972470641,1.07919982,25798.0,25797.0,2.32664283]
[1693972470817,1.07907982,25798.0,25797.0,2.32664283]
[1693972471035,1.07865982,25798.0,25797.0,2.32664283]
[1693972471233,1.07853982,25798.0,25797.0,2.32664283]
[1693972471435,1.07847982,25798.0,25797.0,2.32664283]
[1693972471644,0.98583045,25798.0,25797.0,2.32664283]
[1693972471838,0.98571045,25798.0,25797.0,2.32664283]
[1693972472070,0.98583045,25798.0,25797.0,2.32664283]
[1693972472292,0.98595045,25798.0,25797.0,2.32664283]
[1693972472491,0.98589045,25798.0,25797.0,2.32664283]
[1693972472692,0.98583045,25798.0,25797.0,2.32664283]
[1693972472897,0.98631045,25798.0,25797.0,2.32664283]
[1693972473097,0.84744221,25798.0,25797.0,2.32664283]
[1693972473296,0.98633404,25798.0,25797.0,2.32664283]
[1693972473494,0.98627404,25798.0,25797.0,2.32664283]
[1693972473652,0.99119404,25798.0,25797.0,2.32664283]
[1693972473852,0.99107404,25798.0,25797.0,2.32664283]
[1693972474079,0.98759404,25798.0,25797.0,2.32664283]
[1693972474286,0.98705404,25798.0,25797.0,2.32664283]
[1693972474550,0.98699404,25798.0,25797.0,2.32664283]
[1693972474775,0.98783404,25798.0,25797.0,2.32664283]
[1693972474955,0.98759404,25798.0,25797.0,2.32664283]
[1693972475180,0.98837404,25798.0,25797.0,2.32664283]
[1693972475382,0.98963404,25798.0,25797.0,2.32664283]
[1693972475585,0.98945404,25798.0,25797.0,2.32664283]
[1693972475829,0.98939404,25798.0,25797.0,2.32664283]
[1693972475981,0.98933404,25798.0,25797.0,2.32664283]
[1693972476186,0.98789404,25798.0,25797.0,2.32664283]
[1693972476391,0.98633404,25798.0,25797.0,2.32664283]
[1693972476587,0.98609404,25798.0,25797.0,2.32664283]
[1693972476787,0.98597404,25798.0,25797.0,2.32664283]
[1693972476989,0.98591404,25798.0,25797.0,2.32664283]
[1693972477236,0.98579404,25798.0,25797.0,2.32664283]
[1693972477695,0.98651404,25798.0,25797.0,2.32664283]
[1693972477848,0.98645404,25798.0,25797.0,2.32664283]
[1693972478078,0.98651404,25798.0,25797.0,2.32664283]
[1693972478279,0.98645404,25798.0,25797.0,2.32664283]
[1693972478480,0.98555404,25798.0,25797.0,2.32664283]
[1693972478687,0.98549404,25798.0,25797.0,2.32664283]
[1693972479033,0.98489404,25798.0,25797.0,2.32664283]
[1693972479241,0.98273404,25798.0,25797.0,2.32664283]
[1693972479448,0.91505404,25798.0,25797.0,2.32664283]
[1693972482574,0.85915048,25798.0,25797.0,2.32664283]
[1693972482776,0.72019865,25798.0,25797.0,2.44694283]
[1693972483393,0.6275554,25798.0,25797.0,2.44694283]
[1693972483640,0.6275554,25798.0,25797.0,2.5121834]
[1693972483641,0.22881321,25798.0,25797.0,2.5121834]
[1693972483853,0.22881321,25798.0,25797.0,2.82774942]
[1693972484052,0.22881321,25798.0,25797.0,2.97081668]
[1693972484253,0.198,25798.0,25797.0,2.97081668]
[1693972484450,0.174,25798.0,25797.0,2.97081668]
[1693972484682,0.198,25798.0,25797.0,2.97081668]
[1693972484886,0.174,25798.0,25797.0,2.82774942]
[1693972485218,0.198,25798.0,25797.0,2.82774942]
[1693972485420,0.174,25798.0,25797.0,2.82774942]
[1693972485831,0.198,25798.0,25797.0,2.82774942]
[1693972486596,0.174,25798.0,25797.0,2.82774942]
[1693972486961,0.198,25798.0,25797.0,2.82774942]
[1693972494907,0.198,25798.0,25797.0,2.85806667]
[1693972507247,0.198,25798.0,25797.0,2.88596975]
[1693972511011,0.15,25798.0,25797.0,2.88596975]
[1693972511214,0.173,25798.0,25797.0,2.88596975]
[1693972511416,0.174,25798.0,25797.0,2.88696975]
[1693972511824,0.164,25798.0,25797.0,2.88596975]
[1693972512237,0.164,25798.0,25797.0,2.88696975]
[1693972512238,0.176,25798.0,25797.0,2.88696975]
[1693972537086,0.176,25798.0,25797.0,3.03171589]
[1693972540445,0.176,25798.0,25797.0,2.88696975]
[1693972542548,0.176,25798.0,25797.0,4.12497714]
[1693972544876,0.176,25798.0,25797.0,4.00438924]
[1693972545255,0.176,25798.0,25797.0,2.88696975]
[1693972546225,0.176,25798.0,25797.0,4.00438881]
[1693972546857,0.176,25798.0,25797.0,3.98358222]
[1693972548638,0.176,25798.0,25797.0,2.86616316]
[1693972548834,0.176,25798.0,25797.0,3.96358185]
[1693972549242,0.176,25798.0,25797.0,3.96358172]
[1693972549742,0.176,25798.0,25797.0,2.84616316]
[1693972549943,0.176,25798.0,25797.0,2.97492607]
[1693972550144,0.176,25798.0,25797.0,4.09234486]
[1693972550764,0.176,25798.0,25797.0,2.97492607]
[1693972551370,0.20283289,25798.0,25797.0,2.97492607]
[1693972553921,0.20283289,25798.0,25797.0,2.95492607]
[1693972556275,0.58947816,25798.0,25797.0,2.81826008]
[1693972559125,0.74153469,25798.0,25797.0,2.65796008]
[1693972559369,0.88317011,25798.0,25797.0,1.85235983]
[1693972559570,0.89526703,25798.0,25797.0,1.55235983]
[1693972559967,0.98791028,25798.0,25797.0,1.55235983]
[1693972560168,0.97391028,25798.0,25797.0,1.55235983]
[1693972560369,1.03967028,25798.0,25797.0,1.55235983]
[1693972560698,1.06337028,25798.0,25797.0,1.55235983]
[1693972560880,1.03961028,25798.0,25797.0,1.55235983]
[1693972561084,1.05173028,25798.0,25797.0,1.55135983]
[1693972561230,1.07567028,25798.0,25797.0,1.55135983]
[1693972561437,1.07615028,25798.0,25797.0,1.55135983]
[1693972561632,1.08815028,25798.0,25797.0,0.00079383]
[1693972561855,1.06307028,25798.0,25797.0,0.77607683]
[1693972562057,1.06307028,25798.0,25797.0,1.55135983]
[1693972562058,1.08131028,25798.0,25797.0,1.55135983]
[1693972562231,0.98866703,25798.0,25797.0,1.55135983]
[1693972562433,0.99304703,25798.0,25797.0,0.77607683]
[1693972562663,0.99688703,25798.0,25797.0,0.77607683]
[1693972562863,0.99682703,25798.0,25797.0,0.00079383]
[1693972563066,0.99754703,25798.0,25797.0,0.00079383]
[1693972563293,0.99760703,25798.0,25797.0,0.00079383]
[1693972563499,0.99748703,25798.0,25797.0,0.00079383]
[1693972563715,0.99754703,25798.0,25797.0,0.00079383]
[1693972564102,0.99682703,25798.0,25797.0,0.00079383]
[1693972564298,0.94876703,25798.0,25797.0,0.00079383]
[1693972564500,0.97270703,25798.0,25797.0,0.00079383]
[1693972564680,0.97264703,25798.0,25797.0,0.00079383]
[1693972564903,0.97234703,25798.0,25797.0,0.00079383]
[1693972565065,0.94912703,25798.0,25797.0,0.00079383]
[1693972565274,0.97240703,25798.0,25797.0,0.00079383]
[1693972565515,0.87008502,25798.0,25797.0,0.00079383]
[1693972565759,0.86984502,25798.0,25797.0,0.00079383]
[1693972565964,0.87050502,25798.0,25797.0,0.00079383]
[1693972566159,0.89456502,25798.0,25797.0,0.00079383]
[1693972566360,0.89462502,25798.0,25797.0,0.00079383]
[1693972566566,0.89456502,25798.0,25797.0,0.00079383]
[1693972566771,0.89468502,25798.0,25797.0,0.00079383]
[1693972566941,0.89474502,25798.0,25797.0,0.00079383]
[1693972567342,0.89480502,25798.0,25797.0,0.00079383]
[1693972567551,0.87086502,25798.0,25797.0,0.00079383]
[1693972567748,0.87086502,25798.0,25797.0,0.00039205]
[1693972567749,3.22062402,25798.0,25797.0,0.00039205]
[1693972567954,3.34021074,25798.0,25797.0,0.00039205]
[1693972568147,1.78772568,25798.0,25797.0,0.00039205]
[1693972568327,1.01175268,25798.0,25797.0,0.00039205]
[1693972568711,0.98727268,25798.0,25797.0,0.00039205]
[1693972568917,1.16733668,25798.0,25797.0,0.00039205]
[1693972569139,1.16721668,25798.0,25797.0,0.00039205]
[1693972569338,1.19103668,25798.0,25797.0,0.00039205]
[1693972569452,1.05039343,25798.0,25797.0,0.00039205]
[1693972569653,1.05027343,25798.0,25797.0,0.00039205]
[1693972570023,1.07379343,25798.0,25797.0,0.00039205]
[1693972570160,1.04967343,25798.0,25797.0,0.00039205]
[1693972570364,1.04949343,25798.0,25797.0,0.00039205]
[1693972570564,1.04931343,25798.0,25797.0,0.00039205]
[1693972570777,1.07355343,25798.0,25797.0,0.00039205]
[1693972570978,1.07349343,25798.0,25797.0,0.00039205]
[1693972571220,1.07331343,25798.0,25797.0,0.00039205]
[1693972571397,1.07319343,25798.0,25797.0,0.00039205]
[1693972571960,1.07061343,25798.0,25797.0,0.00039205]
[1693972572149,1.07025343,25798.0,25797.0,0.00039205]
[1693972572355,1.07007343,25798.0,25797.0,0.00039205]
[1693972572579,1.07043343,25798.0,25797.0,0.00039205]
[1693972572795,1.07343343,25798.0,25797.0,0.00039205]
[1693972573000,1.07349343,25798.0,25797.0,0.00039205]
[1693972573205,1.4599587,25798.0,25797.0,0.00039205]
[1693972573454,1.4607387,25798.0,25797.0,0.00039205]
[1693972573655,1.4639187,25798.0,25797.0,0.00039205]
[1693972573868,1.4634987,25798.0,25797.0,0.00039205]
[1693972574070,1.4637387,25798.0,25797.0,0.00039205]
[1693972574274,1.4635587,25798.0,25797.0,0.00039205]
[1693972574478,1.4641587,25798.0,25797.0,0.00039205]
[1693972574701,1.4646387,25798.0,25797.0,0.00039205]
[1693972574895,1.4645187,25798.0,25797.0,0.00039205]
[1693972575093,1.4643987,25798.0,25797.0,0.00039205]
[1693972575253,1.4642787,25798.0,25797.0,0.00039205]
[1693972575617,1.4640387,25798.0,25797.0,0.00039205]
[1693972575814,1.4636787,25798.0,25797.0,0.00039205]
[1693972576070,1.4639787,25798.0,25797.0,0.00039205]
[1693972576245,1.4656587,25798.0,25797.0,0.00039205]
[1693972576460,1.4635587,25798.0,25797.0,0.00039205]
[1693972576708,1.07655343,25798.0,25797.0,1.55095805]
[1693972576915,0.96415343,25798.0,25797.0,1.55095805]
[1693972577054,0.96415343,25798.0,25797.0,2.32624105]
[1693972577461,0.80898943,25798.0,25797.0,2.32624105]
[1693972579676,0.66276849,25798.0,25797.0,2.32624105]
[1693972590531,0.86089911,25798.0,25797.0,1.55095805]
[1693972590736,0.86221911,25798.0,25797.0,1.55095805]
[1693972590937,0.86263911,25798.0,25797.0,1.55095805]
[1693972591149,0.86251911,25798.0,25797.0,1.55095805]
[1693972591346,1.06434223,25798.0,25797.0,0.00039205]
[1693972591572,1.07904223,25798.0,25797.0,0.00039205]
[1693972591782,1.07856223,25798.0,25797.0,0.00039205]
[1693972591987,1.07844223,25798.0,25797.0,0.00039205]
[1693972592214,1.07826223,25798.0,25797.0,0.00039205]
[1693972592421,1.07796223,25798.0,25797.0,0.00039205]
[1693972592595,1.07748223,25798.0,25797.0,0.00039205]
[1693972592790,1.08138223,25798.0,25797.0,0.00039205]
[1693972592998,1.07676223,25798.0,25797.0,0.00039205]
[1693972593225,1.07604223,25798.0,25797.0,0.00039205]
[1693972593426,1.07586223,25798.0,25797.0,0.00039205]
[1693972593633,1.07556223,25798.0,25797.0,0.00039205]
[1693972593837,1.07520223,25798.0,25797.0,0.00039205]
[1693972594018,1.07496223,25798.0,25797.0,0.00039205]
[1693972594215,1.07472223,25798.0,25797.0,0.00039205]
[1693972594385,1.07448223,25798.0,25797.0,0.00039205]
[1693972594592,0.97114533,25798.0,25797.0,0.00039205]
[1693972594802,0.97060533,25798.0,25797.0,0.00039205]
[1693972595000,0.97282533,25798.0,25797.0,0.00039205]
[1693972595212,0.96754533,25798.0,25797.0,0.00039205]
[1693972595443,0.96862533,25798.0,25797.0,0.00039205]
[1693972595667,0.96862533,25798.0,25797.0,0.77567505]
[1693972595871,0.96550533,25798.0,25797.0,0.77567505]
[1693972596114,0.96430533,25798.0,25797.0,0.77567505]
[1693972596371,0.96370533,25798.0,25797.0,0.77567505]
[1693972596507,0.96310533,25798.0,25797.0,0.77567505]
[1693972596706,0.96316533,25798.0,25797.0,0.77567505]
[1693972596982,0.96370533,25798.0,25797.0,0.77567505]
[1693972597121,0.96628533,25798.0,25797.0,0.77567505]
[1693972597329,0.96622533,25798.0,25797.0,0.77567505]
[1693972597536,0.96628533,25798.0,25797.0,0.77567505]
[1693972597739,0.96622533,25798.0,25797.0,0.77567505]
[1693972598521,0.96670533,25798.0,25797.0,0.77567505]
[1693972598773,0.96616533,25798.0,25797.0,0.77567505]
[1693972599170,1.10555467,25798.0,25797.0,0.77567505]
[1693972599375,1.10549467,25798.0,25797.0,0.77567505]
[1693972599636,1.10573467,25798.0,25797.0,0.77567505]
[1693972599880,1.10501467,25798.0,25797.0,0.77567505]
[1693972600128,1.10537467,25798.0,25797.0,0.77567505]
[1693972600604,1.10531467,25798.0,25797.0,0.77567505]
[1693972600834,1.10561467,25798.0,25797.0,0.77567505]
[1693972601450,1.10201467,25798.0,25797.0,1.55095805]
[1693972601656,1.00982845,25798.0,25797.0,1.55095805]
[1693972601864,1.00994845,25798.0,25797.0,1.55095805]
[1693972602272,1.01000845,25798.0,25797.0,1.55095805]
[1693972602486,1.01012845,25798.0,25797.0,1.55095805]
[1693972602649,1.01018845,25798.0,25797.0,1.55095805]
[1693972602869,1.00874845,25798.0,25797.0,1.55095805]
[1693972603072,1.00988845,25798.0,25797.0,1.55095805]
[1693972603234,1.00880845,25798.0,25797.0,1.55095805]
[1693972603692,1.00628845,25798.0,25797.0,1.55095805]
[1693972603837,1.00790845,25798.0,25797.0,1.55095805]
[1693972604036,1.00784845,25798.0,25797.0,1.55095805]
[1693972604242,1.00628845,25798.0,25797.0,1.55095805]
[1693972604442,1.1907809,25798.0,25797.0,1.55095805]
[1693972604902,1.1912009,25798.0,25797.0,1.55095805]
[1693972605320,1.2089009,25798.0,25797.0,1.55095805]
[1693972605524,1.2039809,25798.0,25797.0,0.77567505]
[1693972605635,1.2023009,25798.0,25797.0,0.77567505]
[1693972605849,1.2021209,25798.0,25797.0,0.77567505]
[1693972606054,1.2018809,25798.0,25797.0,0.77567505]
[1693972606250,1.2009809,25798.0,25797.0,0.77567505]
[1693972606503,1.2018809,25798.0,25797.0,0.77567505]
[1693972606675,1.2017609,25798.0,25797.0,0.77567505]
[1693972607021,1.2019409,25798.0,25797.0,0.77567505]
[1693972607235,1.2003809,25798.0,25797.0,0.77567505]
[1693972607430,1.2002009,25798.0,25797.0,0.77567505]
[1693972607585,1.1999609,25798.0,25797.0,0.77567505]
[1693972607781,1.1998409,25798.0,25797.0,0.77567505]
[1693972608006,1.1996609,25798.0,25797.0,0.77567505]
[1693972608194,1.1995409,25798.0,25797.0,0.77567505]
[1693972608402,1.2005609,25798.0,25797.0,0.77567505]
[1693972608605,1.1996009,25798.0,25797.0,0.77567505]
[1693972608798,1.1994209,25798.0,25797.0,0.77567505]
[1693972609035,1.1996609,25798.0,25797.0,0.77567505]
[1693972609237,1.1994809,25798.0,25797.0,0.77567505]
[1693972609435,1.1993609,25798.0,25797.0,0.77567505]
[1693972609681,1.1990609,25798.0,25797.0,0.77567505]
[1693972609892,1.1988809,25798.0,25797.0,0.77567505]
[1693972610113,1.1987009,25798.0,25797.0,0.77567505]
[1693972610331,1.1985809,25798.0,25797.0,0.77567505]
[1693972610572,1.1982809,25798.0,25797.0,0.77567505]
[1693972610702,1.1981009,25798.0,25797.0,0.77567505]
[1693972610907,1.1985809,25798.0,25797.0,0.77567505]
[1693972611083,1.1984009,25798.0,25797.0,0.77567505]
[1693972611300,1.1973209,25798.0,25797.0,0.77567505]
[1693972611506,1.1970209,25798.0,25797.0,0.77567505]
[1693972611717,1.1975009,25798.0,25797.0,0.77567505]
[1693972611919,1.1973809,25798.0,25797.0,0.77567505]
[1693972612119,1.1972609,25798.0,25797.0,0.77567505]
[1693972612336,1.1971409,25798.0,25797.0,0.77567505]
[1693972612700,1.1967809,25798.0,25797.0,0.77567505]
[1693972612905,1.1963009,25798.0,25797.0,0.77567505]
[1693972613102,1.1961809,25798.0,25797.0,0.77567505]
[1693972613329,1.1960009,25798.0,25797.0,0.77567505]
[1693972613547,1.05631156,25798.0,25797.0,0.77567505]
[1693972613750,1.05619156,25798.0,25797.0,0.77567505]
[1693972613973,1.05607156,25798.0,25797.0,0.77567505]
[1693972614176,1.05601156,25798.0,25797.0,0.77567505]
[1693972614400,1.05589156,25798.0,25797.0,0.77567505]
[1693972614604,1.05565156,25798.0,25797.0,0.77567505]
[1693972614809,1.36744067,25798.0,25797.0,0.00039205]
[1693972615023,1.37128067,25798.0,25797.0,0.00039205]
[1693972615249,1.37674067,25798.0,25797.0,0.00039205]
[1693972615463,1.37362067,25798.0,25797.0,0.00039205]
[1693972615647,1.37194067,25798.0,25797.0,0.00039205]
[1693972615877,1.37176067,25798.0,25797.0,0.00039205]
[1693972616087,1.37152067,25798.0,25797.0,0.00039205]
[1693972616294,1.37134067,25798.0,25797.0,0.00039205]
[1693972616545,1.37050067,25798.0,25797.0,0.00039205]
[1693972616753,1.37026067,25798.0,25797.0,0.00039205]
[1693972616964,1.37182067,25798.0,25797.0,0.00039205]
[1693972617140,1.37170067,25798.0,25797.0,0.00039205]
[1693972617353,1.36990067,25798.0,25797.0,0.00039205]
[1693972617556,1.36954067,25798.0,25797.0,0.00039205]
[1693972617770,1.36942067,25798.0,25797.0,0.00039205]
[1693972617975,1.36918067,25798.0,25797.0,0.00039205]
[1693972618178,1.36906067,25798.0,25797.0,0.00039205]
[1693972618408,1.37020067,25798.0,25797.0,0.00039205]
[1693972618608,1.36852067,25798.0,25797.0,0.00039205]
[1693972618788,1.36948067,25798.0,25797.0,0.00039205]
[1693972619026,1.36936067,25798.0,25797.0,0.00039205]
[1693972619254,2.14773367,25798.0,25797.0,0.00039205]
[1693972619471,2.15013367,25798.0,25797.0,0.00039205]
[1693972619677,2.15223367,25798.0,25797.0,0.00039205]
[1693972619879,2.15217367,25798.0,25797.0,0.00039205]
[1693972620102,2.15085367,25798.0,25797.0,0.00039205]
[1693972620306,2.15073367,25798.0,25797.0,0.00039205]
[1693972620517,2.15055367,25798.0,25797.0,0.00039205]
[1693972620724,2.15007367,25798.0,25797.0,0.00039205]
[1693972620927,2.14977367,25798.0,25797.0,0.00039205]
[1693972621106,2.92496667,25798.0,25797.0,0.00039205]
[1693972621305,2.63273756,25798.0,25797.0,0.00039205]
[1693972621511,2.65171756,25798.0,25797.0,0.00039205]
[1693972621736,2.65081756,25798.0,25797.0,0.00039205]
[1693972621947,2.65051756,25798.0,25797.0,0.00039205]
[1693972622155,2.65015756,25798.0,25797.0,0.00039205]
[1693972622365,2.64997756,25798.0,25797.0,0.00039205]
[1693972622550,2.64979756,25798.0,25797.0,0.00039205]
[1693972622760,2.64955756,25798.0,25797.0,0.00039205]
[1693972622964,2.64949756,25798.0,25797.0,0.00039205]
[1693972623174,2.64919756,25798.0,25797.0,0.00039205]
[1693972623382,2.64907756,25798.0,25797.0,0.00039205]
[1693972623588,2.64883756,25798.0,25797.0,0.00039205]
[1693972623794,3.03536283,25798.0,25797.0,0.00039205]
[1693972624227,3.03422283,25798.0,25797.0,0.00039205]
[1693972624432,3.03392283,25798.0,25797.0,0.00039205]
[1693972624612,3.03380283,25798.0,25797.0,0.00039205]
[1693972624815,2.64517756,25798.0,25797.0,0.00039205]
[1693972625024,2.64439756,25798.0,25797.0,0.00039205]
[1693972625195,2.64427756,25798.0,25797.0,0.00039205]
[1693972625401,2.64409756,25798.0,25797.0,0.00039205]
[1693972625739,1.08705156,25798.0,25797.0,0.00039205]
[1693972625927,1.08621156,25798.0,25797.0,0.00039205]
[1693972626129,1.08609156,25798.0,25797.0,0.00039205]
[1693972626391,1.08603156,25798.0,25797.0,0.00039205]
[1693972626575,1.08597156,25798.0,25797.0,0.00039205]
[1693972626746,1.10873152,25798.0,25797.0,0.00039205]